fUSD/lending_fUSD_20240109
["ID","MTS","AMOUNT","RATE_DAILY","PERIOD"]
[310969178,1704836052782,-1520.5,0.00042164,30]
[310969179,1704836052792,-1804.05,0.00042164,30]
[310969180,1704836052802,-502.92,0.00042164,30]
[310969181,1704836052813,-539.66,0.00042164,30]
[310969182,1704836052823,-857.84,0.00042164,30]
[310969183,1704836052833,-1689.37,0.00042164,30]
[310969184,1704836052843,-1039.06,0.00042164,30]
[310969185,1704836052853,-4621.51,0.00042164,30]
[310969186,1704836052863,-500.0,0.00042164,30]
[310969187,1704836052873,-704.14,0.00042164,30]
[310969188,1704836052882,-4643.53,0.00042164,30]
[310969189,1704836052892,-500.0,0.00042164,30]
[310969190,1704836052902,-1420.75,0.00042164,30]
[310969191,1704836052913,-3385.64,0.00042164,30]
[310969192,1704836052923,-571.44,0.00042164,30]
[310969193,1704836052933,-500.0,0.00042164,30]
[310969194,1704836052943,-2540.83,0.00042164,30]
[310969195,1704836052953,-965.39,0.00042164,30]
[310969196,1704836052967,-500.0,0.00042164,30]
[310969197,1704836052977,-791.0,0.00042164,30]
[310969198,1704836052988,-2213.16,0.00042164,30]
[310969199,1704836052998,-527.76,0.00042164,30]
[310969200,1704836053009,-846.61,0.00042164,30]
[310969201,1704836053019,-2650.5,0.00042164,30]
[310969202,1704836053029,-786.95,0.00042164,30]
[310969203,1704836053040,-1349.94,0.00042164,30]
[310969204,1704836053049,-500.0,0.00042164,30]
[310969205,1704836053059,-500.0,0.00042164,30]
[310969206,1704836053068,-832.69,0.00042164,30]
[310969207,1704836053078,-2311.91,0.00042164,30]
[310969208,1704836053088,-1396.93,0.00042164,30]
[310969209,1704836053097,-500.0,0.00042164,30]
[310969210,1704836053106,-14690.46,0.00042164,30]
[310969211,1704836053115,-500.0,0.00042164,30]
[310969212,1704836053125,-2102.03,0.00042164,30]
[310969213,1704836053135,-500.0,0.00042164,30]
[310969214,1704836053149,-3431.96,0.00042164,30]
[310969215,1704836053159,-2567.2,0.00042164,30]
[310969216,1704836053169,-6568.56,0.00042164,30]
[310969217,1704836053179,-534.6,0.00042164,30]
[310969218,1704836053188,-4057.32,0.00042164,30]
[310969219,1704836053198,-1036.03,0.00042164,30]
[310969220,1704836053208,-5465.29,0.00042164,30]
[310969221,1704836053220,-1046.98,0.00042164,30]
[310969222,1704836053231,-707.65,0.00042164,30]
[310969223,1704836053242,-3677.68,0.00042164,30]
[310969224,1704836053253,-558.03,0.00042164,30]
[310969225,1704836053263,-503.66,0.00042164,30]
[310969226,1704836053273,-2846.34,0.00042164,30]
[310969227,1704836053283,-796.49,0.00042164,30]
[310969228,1704836053293,-500.0,0.00042164,30]
[310969229,1704836053303,-2255.93,0.00042164,30]
[310969230,1704836053313,-2496.21,0.00042164,30]
[310969231,1704836053323,-2311.14,0.00042164,30]
[310969232,1704836053334,-3376.56,0.00042164,30]
[310969233,1704836053345,-692.76,0.00042164,30]
[310969234,1704836053355,-1358.66,0.00042164,30]
[310969235,1704836053365,-769.11,0.00042164,30]
[310969236,1704836053375,-1845.73,0.00042164,30]
[310969237,1704836053390,-500.0,0.00042164,30]
[310969238,1704836053400,-13108.96,0.00042164,30]
[310969239,1704836053409,-500.0,0.00042164,30]
[310969240,1704836053420,-9899.51,0.00042164,30]
[310969241,1704836053430,-10579.54,0.00042164,30]
[310969242,1704836053439,-1436.88,0.00042164,30]
[310969243,1704836053449,-1636.08,0.00042164,30]
[310969244,1704836053462,-500.0,0.00042164,30]
[310969245,1704836053472,-780.53,0.00042164,30]
[310969246,1704836053482,-1868.59,0.00042164,30]
[310969247,1704836053491,-583.25,0.00042164,30]
[310969248,1704836053501,-1387.57,0.00042164,30]
[310969249,1704836053511,-7300.87,0.00042164,30]
[310969250,1704836053521,-1200.98,0.00042164,30]
[310969251,1704836053530,-1010.7,0.00042164,30]
[310969252,1704836053540,-2024.47,0.00042164,30]
[310969253,1704836053550,-3584.51,0.00042164,30]
[310969254,1704836053560,-663.65,0.00042164,30]
[310969255,1704836053569,-829.24,0.00042164,30]
[310969256,1704836053579,-770.92754558,0.00042164,30]
[310969257,1704836053595,-251.89245442,0.00042164,30]
[310969258,1704836053605,-284.53551705,0.00042164,30]
[310969259,1704836053617,-434.51448295,0.00042164,30]
[310969260,1704836053627,-1279.36,0.00042164,30]
[310969261,1704836053637,-500.0,0.00042164,30]
[310969262,1704836053646,-1955.18,0.00042164,30]
[310969263,1704836053656,-5923.58,0.00042164,30]
[310969264,1704836053666,-1276.96,0.00042164,30]
[310969265,1704836053676,-1076.29,0.00042164,30]
[310969266,1704836053687,-3773.23,0.00042164,30]
[310969267,1704836053698,-3976.14,0.00042164,30]
[310969268,1704836053709,-2969.33,0.00042164,30]
[310969269,1704836053724,-1442.56,0.00042164,30]
[310969270,1704836053735,-1085.14,0.00042164,30]
[310969271,1704836053746,-546.98,0.00042164,30]
[310969272,1704836053756,-1958.44,0.00042164,30]
[310969273,1704836053766,-6261.12,0.00042164,30]
[310969274,1704836053776,-500.0,0.00042164,30]
[310969275,1704836053786,-1066.92,0.00042164,30]
[310969276,1704836053796,-645.66,0.00042164,30]
[310969277,1704836053806,-894.85,0.00042164,30]
[310969278,1704836053816,-2874.62,0.00042164,30]
[310969279,1704836053826,-1757.07,0.00042164,30]
[310969280,1704836053835,-3586.63575357,0.00042164,30]
[310969281,1704836053847,-276.07424643,0.00042164,30]
[310969282,1704836053857,-4543.27,0.00042164,30]
[310969283,1704836053867,-1341.14,0.00042164,30]
[310969284,1704836053876,-577.82,0.00042164,30]
[310969285,1704836053885,-500.0,0.00042164,30]
[310969286,1704836053895,-901.82,0.00042164,30]
[310969287,1704836053904,-3856.08,0.00042164,30]
[310969288,1704836053914,-1349.44,0.00042164,30]
[310969289,1704836053926,-1130.33,0.00042164,30]
[310969290,1704836053936,-1641.57,0.00042164,30]
[310969291,1704836053947,-1586.06,0.00042164,30]
[310969292,1704836053957,-588.78,0.00042164,30]
[310969293,1704836053972,-760.68,0.00042164,30]
[310969294,1704836053983,-857.88,0.00042164,30]
[310969295,1704836053994,-3762.07,0.00042164,30]
[310969296,1704836054003,-500.0,0.00042164,30]
[310969297,1704836054013,-536.72,0.00042164,30]
[310969298,1704836054023,-550.1,0.00042164,30]
[310969299,1704836054033,-4355.86,0.00042164,30]
[310969300,1704836054042,-4420.44,0.00042164,30]
[310969301,1704836054052,-1511.36,0.00042164,30]
[310969302,1704836054062,-1161.02,0.00042164,30]
[310969303,1704836054071,-10725.89,0.00042164,30]
[310969304,1704836054081,-1044.46,0.00042164,30]
[310969305,1704836054091,-929.83,0.00042164,30]
[310969306,1704836054101,-500.0,0.00042164,30]
[310969307,1704836054111,-547.57324961,0.00042164,30]
[310969308,1704836054124,-319.92675039,0.00042164,30]
[310969309,1704836054134,-720.34,0.00042164,30]
[310969310,1704836054144,-1233.90514961,0.00042164,30]
[310969311,1704836054328,-1662.79266694,0.00041095,30]
[310969312,1704836054340,-367.80733306,0.00041095,30]
[310969313,1704836054350,-5054.11,0.00041178,30]
[310969314,1704836054360,-1808.65,0.00041342,30]
[310969315,1704836054369,-5348.86,0.00041424,30]
[310969316,1704836054379,-961.05,0.00041753,30]
[310969317,1704836054390,-737.62,0.00041917,30]
[310969318,1704836054399,-5744.02485039,0.00042164,30]
[310969319,1704836054409,-500.0,0.00042164,30]
[310969320,1704836054418,-964.23,0.00042164,30]
[310969321,1704836054428,-3056.94,0.00042164,30]
[310969322,1704836054438,-1586.56,0.00042164,30]
[310969323,1704836054447,-500.0,0.00042164,30]
[310969324,1704836054457,-500.0,0.00042164,30]
[310969325,1704836054470,-1370.1,0.00042164,30]
[310969326,1704836054478,-3469.89,0.00042164,30]
[310969327,1704836054488,-500.0,0.00042164,30]
[310969328,1704836054498,-648.93,0.00042164,30]
[310969329,1704836054508,-994.23,0.00042164,30]
[310969330,1704836054517,-500.0,0.00042164,30]
[310969331,1704836054527,-3974.35,0.00042164,30]
[310969332,1704836054536,-500.0,0.00042164,30]
[310969333,1704836054546,-575.24,0.00042164,30]
[310969334,1704836054556,-10.01725181,0.00042164,30]
[310969335,1704836054568,-1198.60274819,0.00042164,30]
[310969336,1704836054579,-424.63335158,0.00042164,30]
[310969337,1704836054591,-75.36664842,0.00042164,30]
[310969338,1704836054601,-467.60640004,0.00042164,30]
[310969339,1704836054610,-840.42,0.00042164,30]
[310969340,1704836054620,-442.62,0.00042164,30]
[310969341,1704836054629,-500.0,0.00042164,30]
[310969342,1704836054638,-1312.12204525,0.00042164,30]
[310969343,1704836054650,-1155.228,0.00042164,30]
[310969344,1704836054661,-4518.0,0.00042164,30]
[310969345,1704836054673,-13067.52995475,0.00042164,30]
[310969346,1704836054682,-3280.13,0.00042164,30]
[310969347,1704836054691,-1154.2,0.00042164,30]
[310969348,1704836054700,-1336.18,0.00042164,30]
[310969349,1704836054710,-500.0,0.00042164,30]
[310969350,1704836054722,-3059.66,0.00042164,30]
[310969351,1704836054733,-808.78,0.00042164,30]
[310969352,1704836054742,-5796.52,0.00042164,30]
[310969353,1704836054752,-595.48,0.00042164,30]
[310969354,1704836054762,-772.79,0.00042164,30]
[310969355,1704836054771,-1773.57,0.00042164,30]
[310969356,1704836054780,-500.0,0.00042164,30]
[310969357,1704836054790,-1436.73,0.00042164,30]
[310969358,1704836054800,-1274.83,0.00042164,30]
[310969359,1704836054810,-823.79,0.00042164,30]
[310969360,1704836054820,-729.59621033,0.00042164,30]
[310969361,1704836054969,-38.18378967,0.00042164,30]
[310969362,1704836054979,-500.0,0.00042164,30]
[310969363,1704836054989,-500.0,0.00042164,30]
[310969364,1704836054998,-267.5358267,0.00042164,30]
[310969365,1704836055009,-1764.13,0.00042164,30]
[310969366,1704836055021,-924.78,0.00042164,30]
[310969367,1704836055031,-1944.68,0.00042164,30]
[310969368,1704836055041,-10402.25,0.00042164,30]
[310969369,1704836055051,-4303.2,0.00042164,30]
[310969370,1704836055061,-4288.57,0.00042164,30]
[310969371,1704836055070,-7059.7,0.00042164,30]
[310969372,1704836055080,-6327.7,0.00042164,30]
[310969373,1704836055091,-1629.67,0.00042164,30]
[310969374,1704836055101,-2082.36,0.00042164,30]
[310969375,1704836055112,-699.1,0.00042164,30]
[310969376,1704836055125,-500.0,0.00042164,30]
[310969377,1704836055135,-1166.65,0.00042191,42]
[310969378,1704836055145,-1248.33,0.00042191,42]
[310969379,1704836055154,-4080.04,0.00042191,30]
[310969380,1704836055165,-2018.40991667,0.00042191,30]
[310969381,1704836055177,-2061.63008333,0.00042191,30]
[310969382,1704836055187,-4080.04,0.00042191,30]
[310969383,1704836055196,-4080.04,0.00042191,30]
[310969384,1704836055206,-4080.04,0.00042191,30]
[310969385,1704836055219,-4080.04,0.00042191,30]
[310969386,1704836055228,-4080.04,0.00042191,30]
[310969387,1704836055239,-4080.04,0.00042191,30]
[310969388,1704836055248,-4080.04,0.00042191,30]
[310969389,1704836055258,-4080.04,0.00042191,30]
[310969390,1704836055268,-4080.04,0.00042191,30]
[310969391,1704836055278,-4080.04,0.00042191,30]
[310969392,1704836055287,-4080.04,0.00042191,30]
[310969393,1704836055297,-4080.04,0.00042191,30]
[310969394,1704836055307,-3000.0,0.00042191,120]
[310969395,1704836055317,-650.8095,0.000422,30]
[310969396,1704836055327,-1037.320079,0.000422,6]
[310969397,1704836055337,-500.0,0.00042246,30]
[310969398,1704836055347,-500.0,0.00042246,30]
[310969399,1704836055356,-519.07,0.00042246,30]
[310969400,1704836055366,-500.0,0.00042246,30]
[310969401,1704836055377,-1003.07,0.00042246,6]
[310969402,1704836055386,-575.96528646,0.00042246,30]
[310969403,1704836055396,-599.12,0.00042246,30]
[310969404,1704836055407,-870.95,0.00042246,30]
[310969405,1704836055417,-774.16,0.00042246,30]
[310969406,1704836055427,-500.0,0.00042246,30]
[310969407,1704836055437,-500.0,0.00042246,2]
[310969408,1704836055447,-628.44,0.00042246,30]
[310969409,1704836055458,-263.42276426,0.00042246,30]
[310969410,1704836055469,-500.0,0.00042246,30]
[310969411,1704836055481,-583.93,0.00042246,30]
[310969412,1704836055492,-664.43,0.00042246,30]
[310969413,1704836055502,-642.11,0.00042246,30]
[310969414,1704836055511,-1006.44,0.00042246,30]
[310969415,1704836055521,-785.15,0.00042246,30]
[310969416,1704836055531,-220.47747085,0.00042246,30]
[310969417,1704836055540,-500.0,0.00042246,30]
[310969418,1704836055550,-446.61958828,0.00042246,30]
[310969419,1704836055560,-647.85,0.00042246,30]
[310969420,1704836055569,-1176.3,0.00042246,30]
[310969421,1704836055579,-892.9,0.00042246,30]
[310969422,1704836055589,-875.0,0.00042246,30]
[310969423,1704836055598,-500.0,0.00042246,30]
[310969424,1704836055608,-202.78123974,0.00042246,30]
[310969425,1704836055617,-924.33,0.00042246,30]
[310969426,1704836055627,-552.38,0.00042246,30]
[310969427,1704836055637,-1079.22,0.00042246,30]
[310969428,1704836055647,-1021.0,0.00042246,30]
[310969429,1704836055656,-500.0,0.00042246,30]
[310969430,1704836055676,-500.0,0.00042246,30]
[310969431,1704836055687,-500.0,0.00042246,30]
[310969432,1704836055697,-749.02,0.00042246,30]
[310969433,1704836055707,-500.0,0.00042246,30]
[310969434,1704836055719,-507.33,0.00042246,30]
[310969435,1704836055729,-500.0,0.00042246,30]
[310969436,1704836055738,-500.0,0.00042246,30]
[310969437,1704836055748,-500.0,0.00042246,30]
[310969438,1704836055758,-556.06,0.00042246,30]
[310969439,1704836055767,-500.0,0.00042246,30]
[310969440,1704836055777,-500.0,0.00042246,30]
[310969441,1704836055787,-544.95,0.00042246,30]
[310969442,1704836055796,-889.52,0.00042246,30]
[310969443,1704836055806,-643.58,0.00042246,30]
[310969444,1704836055816,-857.15,0.00042246,30]
[310969445,1704836055826,-549.07,0.00042246,30]
[310969446,1704836055835,-674.98,0.00042246,30]
[310969447,1704836055845,-500.0,0.00042246,30]
[310969448,1704836055855,-879.09,0.00042246,30]
[310969449,1704836055865,-500.0,0.00042246,30]
[310969450,1704836055875,-525.43,0.00042246,30]
[310969451,1704836055885,-740.92,0.00042246,30]
[310969452,1704836055895,-389.28535053,0.00042246,30]
[310969453,1704836055905,-228.25863754,0.00042246,30]
[310969454,1704836056044,-500.0,0.00041095,30]
[310969455,1704836056055,-2030.6,0.00041178,30]
[310969456,1704836056323,-1808.65,0.00041424,30]
[310969457,1704836056349,-1536.33180018,0.00041506,30]
[310969458,1704836056363,-1589.2456044,0.00041506,30]
[310969459,1704836056376,-2223.28259542,0.00041506,30]
[310969460,1704836056386,-1808.65,0.00041506,30]
[310969461,1704836056397,-961.05,0.00041835,30]
[310969462,1704836056408,-961.05,0.00041917,30]
[310969463,1704836056419,-737.62,0.00042,30]
[310969464,1704836056431,-271.74136246,0.00042246,30]
[310969465,1704836056441,-894.54,0.00042246,30]
[310969466,1704836056452,-1210.61,0.00042246,30]
[310969467,1704836056465,-1262.57,0.00042246,30]
[310969468,1704836056476,-767.71,0.00042246,30]
[310969469,1704836056486,-331.72376199,0.00042246,30]
[310969470,1704836056500,-239.72623801,0.00042246,30]
[310969471,1704836056510,-500.0,0.00042246,30]
[310969472,1704836056520,-568.08,0.00042246,30]
[310969473,1704836056530,-1012.62,0.00042246,30]
[310969474,1704836056539,-500.0,0.00042246,30]
[310969475,1704836056549,-500.0,0.00042246,30]
[310969476,1704836056560,-504.29,0.00042246,30]
[310969477,1704836056569,-744.29,0.00042246,30]
[310969478,1704836056582,-1071.67,0.00042246,30]
[310969479,1704836056592,-1041.65,0.00042246,30]
[310969480,1704836056601,-500.0,0.00042246,30]
[310969481,1704836056613,-597.48,0.00042246,30]
[310969482,1704836056623,-670.96,0.00042246,30]
[310969483,1704836056634,-992.5,0.00042246,30]
[310969484,1704836056645,-500.0,0.00042246,30]
[310969485,1704836056655,-1379.24,0.00042246,30]
[310969486,1704836056665,-891.81,0.00042246,30]
[310969487,1704836056676,-500.0,0.00042246,30]
[310969488,1704836056686,-3464.95,0.00042246,30]
[310969489,1704836056695,-838.55,0.00042246,30]
[310969490,1704836056705,-660.81,0.00042246,30]
[310969491,1704836056717,-1525.96,0.00042246,30]
[310969492,1704836056727,-940.28,0.00042246,30]
[310969493,1704836056737,-797.09,0.00042246,30]
[310969494,1704836056747,-500.0,0.00042246,30]
[310969495,1704836056757,-1021.78,0.00042246,30]
[310969496,1704836056767,-548.12425538,0.00042246,30]
[310969497,1704836056777,-765.32,0.00042246,30]
[310969498,1704836056787,-624.2,0.00042246,30]
[310969499,1704836056797,-1106.38,0.00042246,30]
[310969500,1704836056806,-581.2,0.00042246,30]
[310969501,1704836056816,-1950.33,0.00042246,30]
[310969502,1704836056826,-779.64,0.00042246,30]
[310969503,1704836056836,-557.57,0.00042246,30]
[310969504,1704836056847,-742.05,0.00042246,30]
[310969505,1704836056857,-578.59,0.00042246,30]
[310969506,1704836056868,-718.23,0.00042246,30]
[310969507,1704836056878,-600.91620402,0.00042246,30]
[310969508,1704836056888,-1681.49,0.00042246,30]
[310969509,1704836056898,-667.7,0.00042246,30]
[310969510,1704836056908,-500.0,0.00042246,30]
[310969511,1704836056918,-500.0,0.00042246,30]
[310969512,1704836056928,-500.0,0.00042246,30]
[310969513,1704836056939,-803.72,0.00042246,30]
[310969514,1704836056949,-691.09,0.00042246,30]
[310969515,1704836056960,-820.84,0.00042246,30]
[310969516,1704836056971,-500.0,0.00042246,30]
[310969517,1704836056980,-4080.04,0.00042246,30]
[310969518,1704836056990,-172.89842779,0.00042246,7]
[310969519,1704836056999,-199.91819884,0.00042246,30]
[310969520,1704836057008,-500.0,0.00042246,30]
[310969521,1704836057017,-612.42,0.00042246,30]
[310969522,1704836057027,-500.0,0.00042246,30]
[310969523,1704836057037,-700.31,0.00042246,30]
[310969524,1704836057047,-1173.84,0.00042246,30]
[310969525,1704836057057,-890.72,0.00042246,30]
[310969526,1704836057066,-519.17,0.00042246,30]
[310969527,1704836057075,-681.49,0.00042246,30]
[310969528,1704836057085,-627.48,0.00042246,30]
[310969529,1704836057094,-1141.38,0.00042246,30]
[310969530,1704836057104,-596.45,0.00042246,30]
[310969531,1704836057119,-616.05,0.00042246,30]
[310969533,1704836057134,-1154.54,0.00042246,30]
[310969534,1704836057144,-500.0,0.00042246,30]
[310969535,1704836057156,-622.7,0.00042246,30]
[310969536,1704836057165,-1370.57,0.00042246,30]
[310969537,1704836057176,-724.45,0.00042246,30]
[310969538,1704836057186,-555.95,0.00042246,30]
[310969539,1704836057197,-677.52,0.00042246,30]
[310969540,1704836057208,-500.0,0.00042246,30]
[310969541,1704836057221,-500.0,0.00042246,30]
[310969542,1704836057231,-500.0,0.00042246,30]
[310969543,1704836057241,-500.0,0.00042246,30]
[310969544,1704836057252,-500.0,0.00042246,30]
[310969545,1704836057262,-854.7,0.00042246,30]
[310969546,1704836057272,-1132.67,0.00042246,30]
[310969547,1704836057282,-500.0,0.00042246,30]
[310969548,1704836057293,-950.79,0.00042246,30]
[310969549,1704836057303,-500.0,0.00042246,30]
[310969550,1704836057313,-500.0,0.00042246,30]
[310969551,1704836057323,-1393.23,0.00042246,30]
[310969552,1704836057333,-1054.09,0.00042246,30]
[310969553,1704836057344,-500.0,0.00042246,30]
[310969554,1704836057354,-982.92,0.00042246,30]
[310969555,1704836057364,-897.66,0.00042246,30]
[310969556,1704836057374,-612.78,0.00042246,30]
[310969557,1704836057389,-1038.74,0.00042246,30]
[310969558,1704836057400,-500.0,0.00042246,30]
[310969559,1704836057412,-585.83,0.00042246,30]
[310969560,1704836057422,-1010.24,0.00042246,30]
[310969561,1704836057434,-625.2,0.00042246,30]
[310969562,1704836057444,-500.0,0.00042246,30]
[310969563,1704836057454,-500.0,0.00042246,30]
[310969564,1704836057466,-1823.52,0.00042246,30]
[310969565,1704836057475,-1503.9,0.00042246,30]
[310969566,1704836057485,-975.74,0.00042246,30]
[310969567,1704836057495,-860.51,0.00042246,30]
[310969568,1704836057506,-693.44,0.00042246,30]
[310969569,1704836057516,-1252.33,0.00042246,30]
[310969570,1704836057526,-812.42,0.00042246,30]
[310969571,1704836057536,-500.0,0.00042246,30]
[310969572,1704836057547,-1661.63,0.00042246,30]
[310969573,1704836057558,-835.41,0.00042246,30]
[310969574,1704836057568,-929.16,0.00042246,30]
[310969575,1704836057578,-500.0,0.00042246,30]
[310969576,1704836057588,-996.89,0.00042246,4]
[310969577,1704836057598,-500.0,0.00042246,30]
[310969578,1704836057608,-500.0,0.00042246,30]
[310969579,1704836057618,-649.54,0.00042246,30]
[310969580,1704836057629,-1020.06,0.00042246,30]
[310969581,1704836057639,-575.77527599,0.00042246,30]
[310969582,1704836057700,-647.63830684,0.0004126,30]
[310969583,1704836057715,-409.01079425,0.0004126,30]
[310969586,1704836066666,183.16916672,0.0003,120]
[310969588,1704836072701,-4109.36308953,0.0003,2]
[310969589,1704836072711,-155.0,0.0003,4]
[310969590,1704836072720,-203.47773637,0.0003,2]
[310969591,1704836072734,-1876.78783194,0.0003,4]
[310969592,1704836072743,-844.98023039,0.0003,3]
[310969593,1704836072753,-3195.18174134,0.0003,4]
[310969594,1704836072763,-176.8846555,0.0003,4]
[310969595,1704836072772,-1339.90449656,0.0003,4]
[310969596,1704836072782,-339.6731886,0.0003,7]
[310969597,1704836072791,-3185.21463735,0.00033598,2]
[310969598,1704836072801,-17046.5464,0.0003442,2]
[310969599,1704836072810,-300.0,0.0003452,2]
[310969600,1704836072819,-395.14018829,0.00034648,4]
[310969601,1704836072830,-9620.12645151,0.00034648,2]
[310969602,1704836072839,-155.0,0.00034648,4]
[310969603,1704836072848,-150.99,0.00034648,2]
[310969604,1704836072858,-12487.76,0.00034648,2]
[310969605,1704836072872,-150.53,0.00034745,15]
[310969606,1704836072881,-450.0,0.00034794,2]
[310969607,1704836072891,-8660.1785,0.00034899,2]
[310969608,1704836072901,-4593.74782043,0.00034899,2]
[310969609,1704836072913,-1998.14977957,0.00034899,2]
[310969610,1704836072922,-600.0,0.00034931,2]
[310969611,1704836072933,-161.13575641,0.00034998,4]
[310969612,1704836072943,-346.48573268,0.00034998,4]
[310969613,1704836072953,-235.96282679,0.00034998,4]
[310969614,1704836072963,-306.17069153,0.00034998,4]
[310969615,1704836072973,-155.000001,0.00034998,2]
[310969616,1704836072986,-259.11941183,0.00034998,4]
[310969617,1704836072996,-244.79489281,0.00034998,4]
[310969618,1704836073006,-155.0,0.00034998,4]
[310969619,1704836073015,-196.21358155,0.00034998,4]
[310969620,1704836073025,-638.22642677,0.00034998,4]
[310969621,1704836073034,-750.0,0.00035068,2]
[310969622,1704836073044,-1050.000001,0.00035342,2]
[310969623,1704836073053,-559.19420109,0.00035488,4]
[310969624,1704836073062,-908.34393957,0.00036299,4]
[310969625,1704836073071,-156.99421172,0.00036299,4]
[310969626,1704836073081,-155.0,0.00036299,4]
[310969627,1704836073090,-116.06339048,0.00036488,2]
[310969628,1704836073102,-835.12660952,0.00036488,2]
[310969629,1704836073112,-1417.37339048,0.00037061,2]
[310969630,1704836073133,-263.48823361,0.00037061,2]
[310969631,1704836073149,-3176.07535174,0.00037061,2]
[310969632,1704836073159,-585.80820313,0.00037251,8]
[310969633,1704836073169,-1937.236888,0.0003743,30]
[310969634,1704836073180,-530.98245295,0.00037431,4]
[310969635,1704836073189,-2407.47232861,0.00037431,4]
[310969636,1704836073199,-1000.0,0.00037431,4]
[310969637,1704836073208,-2798.72463254,0.00037431,4]
[310969638,1704836073261,-6141.67337132,0.00037431,4]
[310969639,1704836073271,-155.0,0.00037431,2]
[310969640,1704836073281,-205.0,0.00037578,2]
[310969641,1704836073291,-205.0,0.00037578,2]
[310969642,1704836073301,-1419.90184476,0.00037879,30]
[310969643,1704836073310,-284.59971589,0.00038,4]
[310969644,1704836073320,-1000.0,0.00038678,10]
[310969645,1704836073330,-628.92,0.00039331,2]
[310969646,1704836073340,-150.0,0.00039341,2]
[310969647,1704836073350,-1430.0,0.00039474,4]
[310969648,1704836073360,-804.58406062,0.00039474,4]
[310969649,1704836073370,-155.46490209,0.00039647,7]
[310969650,1704836073380,-365.37681631,0.00039673,4]
[310969651,1704836073394,-282.99954927,0.00039854,4]
[310969652,1704836073404,-155.49808071,0.00039872,4]
[310969653,1704836073414,-1757.95455436,0.00039872,4]
[310969654,1704836073425,-317.68758824,0.00039872,2]
[310969655,1704836073437,-6524.24467358,0.00039872,4]
[310969656,1704836073447,-3670.36810023,0.00039872,4]
[310969657,1704836073459,-547.58880873,0.00039872,4]
[310969658,1704836073470,-355.48961535,0.00039872,4]
[310969659,1704836073484,-155.0,0.00039872,4]
[310969660,1704836073494,-3387.64451801,0.00039872,4]
[310969661,1704836073507,-2755.10389373,0.00039872,4]
[310969662,1704836073518,-5260.12648064,0.00039872,4]
[310969663,1704836073529,-687.60967782,0.00039872,4]
[310969664,1704836073539,-2017.76267302,0.00039872,4]
[310969665,1704836073552,-746.76389791,0.00039872,4]
[310969666,1704836073562,-503.55552825,0.00039872,4]
[310969667,1704836073573,-182.58341482,0.00039872,4]
[310969668,1704836073588,-524.06446348,0.00039873,2]
[310969669,1704836073598,-308.96565523,0.00039873,4]
[310969670,1704836073611,-398.91668285,0.00039873,4]
[310969671,1704836073621,-480.65377738,0.00039873,4]
[310969672,1704836073631,-214.7697369,0.00039873,4]
[310969673,1704836073641,-1397.31752742,0.00039874,2]
[310969674,1704836073650,-501.05172636,0.00039874,4]
[310969675,1704836073660,-155.0,0.00039874,4]
[310969676,1704836073670,-155.0,0.00039874,4]
[310969677,1704836073680,-161.34210277,0.00039874,4]
[310969678,1704836073691,-155.12802974,0.00039874,4]
[310969679,1704836073701,-155.0,0.00039874,4]
[310969680,1704836073712,-235.59596062,0.00039874,2]
[310969681,1704836073723,-155.0,0.00039874,4]